[Event "8th Montevideo Open 2025"]
[Site "Montevideo"]
[Date "2025.02.07"]
[Round "7.5"]
[White "Villca, Julian"]
[Black "Carbone, Diego"]
[Result "1-0"]
[Annotator "TA"]
[ECO "A13"]
[WhiteElo "2413"]
[BlackElo "2216"]
[PlyCount "129"]
[EventDate "2025.02.01"]
[EventType "swiss"]
[EventCountry "URU"]
[SourceTitle "playchess.com"]
[Source "ChessBase"]
[SourceQuality "1"]
[TimeControl "5400+30"]

{[%evp 9,129,2,12,2,22,17,21,33,21,0,19,-20,0,0,0,-33,0,-8,4,-85,-67,-119,-106,-110,-108,-132,-129,-112,-119,-154,-98,-102,-89,-96,-80,-143,-135,-137,-119,-113,-98,-149,-110,-109,-117,-111,-121,-124,-98,-135,-41,-55,-55,-56,-42,-65,-54,-171,-51,-139,-85,-83,0,0,0,-5,37,35,139,135,145,133,137,128,180,119,107,118,114,68,172,159,386,399,431,418,486,480,542,174,169,35,679,666,629,536,655,220,220,206,393,377,283,48,480,66,473,466,29965,29966,29966,12784,29971,29971,29993,29992,29993,29994,29994,29992,29995,29996]} 1. c4 {[%emt 0:10:36]} e6 {[%emt 0:00:21]} 2. Nf3 {[%emt 0:00:05]} d5 {[%emt 0:00:21]} 3. e3 {[%emt 0:00:16]} Nf6 {[%emt 0:00:19]} 4. b3 {[%emt 0:00:06]} Bd6 {[%emt 0:01:12]} 5. Nc3 {[%emt 0:00:40]} O-O {[%emt 0:01:05]} 6. Bb2 {[%emt 0:01:16] A13: English Opening: 1...e6.} Nc6 {[%emt 0:01:57][%cal Bb8c6,Bc6e7,Be7g6,Bg6f4,Bf4h3][%mdl 32]} 7. d4 {[%emt 0:01:10]} dxc4 {[%emt 0:02:22]} 8. Bxc4 {[%emt 0:00:09] The position is equal.} e5 {[%emt 0:00:17]} 9. d5 {[%emt 0:00:13]} Ne7 {[%emt 0:02:03]} 10. h3 $146 {[%emt 0:06:03]} (10. Qc2 Bf5 11. e4 Bg4 12. O-O-O c6 13. dxc6 Nxc6 14. Nb5 Bc5 15. Rxd8 {1-0 Schnatz,W-Baer,W DESC SZ071 email 2008}) 10... Ng6 {[%emt 0:02:08]} 11. Qc2 {[%emt 0:01:12]} a6 {[%emt 0:03:43]} 12. a4 {[%emt 0:00:16]} Re8 {[%emt 0:03:07]} 13. Nd2 {[%emt 0:01:09]} h6 {[%emt 0:10:25][%cal Oe5e4]} 14. e4 {[%emt 0:13:45]} (14. O-O $11 {keeps the balance.}) 14... Bd7 $17 {[%emt 0:08:47]} 15. O-O {[%emt 0:09:24]} ({White has to play} 15. Be2 $1 $15) 15... Nf4 {[%emt 0:04:05][%cal Od7h3] Black attacks} 16. Rfe1 {[%emt 0:01:10] [#]} Bxh3 $1 {[%emt 0:11:48][%mdl 512]} 17. gxh3 {[%emt 0:00:15]} Nxh3+ {[%emt 0:00:32]} 18. Kf1 {[%emt 0:04:18]} Ng4 {[%emt 0:00:30][%cal Od8g5]} 19. Ke2 {[%emt 0:02:27]} Qh4 {[%emt 0:08:17]} (19... Nhxf2 $6 20. Nf3 $15) (19... Bc5 $142 20. Nf3 Nf4+ (20... Nhxf2 21. Rg1 $15) 21. Kd1 Bxf2 (21... Nxf2+ 22. Kc1 $14)) 20. Kd1 {[%emt 0:29:54]} Nhxf2+ {[%emt 0:04:27]} (20... Qxf2 $6 21. Nf1 $11) 21. Kc1 {[%emt 0:00:14]} Nd3+ (21... b5 {keeps more tension.} 22. Bf1 Nd3+ 23. Qxd3 Qxe1+ 24. Nd1 Nf2) 22. Bxd3 {[%emt 0:00:15]} (22. Qxd3 Qxe1+ 23. Nd1) 22... Qxe1+ {[%emt 0:04:56]} 23. Qd1 {[%emt 0:00:07]} Qxd1+ {[%emt 0:05:03]} 24. Nxd1 {[%emt 0:00:58]} h5 {[%emt 0:07:43]} 25. Be2 {[%emt 0:01:01]} (25. Nc4 $142) 25... Nf6 {[%emt 0:00:33]} 26. Ne3 {[%emt 0:04:47]} Bc5 {[%emt 0:01:30]} 27. Nec4 {[%emt 0:00:55]} Bd4 {[%emt 0:05:10]} 28. Kc2 {[%emt 0:01:40]} Bxb2 {[%emt 0:01:25]} 29. Kxb2 {[%emt 0:00:11]} g5 {[%emt 0:00:46]} (29... g6 $17 30. a5 Kg7) 30. Rf1 $15 {[%emt 0:02:21]} Kg7 {[%emt 0:01:52]} 31. Rf5 {[%emt 0:00:32][%csl LRe5,LRg5]} g4 {[%emt 0:00:12]} 32. Nxe5 {[%emt 0:00:08]} (32. Rxe5 Rxe5 33. Nxe5 Re8 $19) 32... Re7 {[%emt 0:02:57]} 33. Bd3 {[%emt 0:05:17]} ({White should play} 33. Kc3 $15) 33... Rh8 {[%emt 0:00:07]} (33... Rae8 $1 $19 34. Rg5+ Kh6) 34. Nf1 {[%emt 0:01:20]} (34. Kc3 $15) 34... a5 {[%emt 0:05:25]} (34... Kf8 $1 {[%cal Oh5h4]} 35. Kc3 h4 36. Ng6+ (36. Kd4 g3 $17) 36... fxg6 37. Rxf6+ Rf7 38. Rxg6 (38. Rxf7+ $2 Kxf7 39. Be2 g3 $19) 38... Rf4) 35. Kc3 {[%emt 0:01:37]} Nd7 {[%emt 0:01:11]} (35... h4 $17 {...g3 would now be deadly.} 36. Kd4 g3 37. Rg5+ Kf8) 36. Nxd7 $11 {[%emt 0:01:18]} Rxd7 {[%emt 0:00:01]} 37. Kd4 $132 {[%emt 0:00:16][%mdl 2048] White is fighting back} f6 {[%emt 0:01:39]} 38. Ng3 {[%emt 0:00:31]} Kg6 {[%emt 0:00:35]} (38... h4 $14 39. Nh5+ Kf8) 39. e5 $16 {[%emt 0:00:13]} fxe5+ {[%emt 0:00:23]} 40. Rxe5+ {[%emt 0:00:01]} Kf7 {[%emt 0:00:33]} 41. Nxh5 {[%emt 0:00:13] White has more active pieces.} (41. Rxh5 Rxh5 42. Nxh5 c6 $14) 41... c6 {[%emt 0:00:28]} (41... Rd6 $16 42. Bc4 Kg6) 42. Rf5+ {[%emt 0:00:01]} (42. Bc4 $18) 42... Ke7 {[%emt 0:00:18]} 43. Nf4 {[%emt 0:00:12]} Rg8 {[%emt 0:00:42] Inhibits Ng6+.} 44. Re5+ {[%emt 0:01:13]} (44. Be4 $16) 44... Kd8 {[%emt 0:00:28]} (44... Kd6 $14) 45. Bf5 $18 {[%emt 0:00:13][%cal Of5e6] Threatens to win with Be6!.} Rd6 {[%emt 0:00:45]} (45... g3 $16) 46. Kc5 $1 {[%emt 0:00:48]} Rf6 {[%emt 0:00:29]} 47. Ne6+ $1 {[%emt 0:00:56]} Kc8 {[%emt 0:00:24]} 48. Nd4+ {[%emt 0:02:04]} (48. dxc6 g3 49. Nf4+ Kb8 $16) 48... Kb8 {[%emt 0:00:37]} 49. d6 $2 {[%emt 0:00:17]} (49. dxc6 g3 50. Be4) 49... g3 {[%emt 0:00:26]} 50. d7 {[%emt 0:00:26]} (50. Bh3 $1 $18) 50... Rff8 $2 {[%emt 0:00:10][%mdl 8192]} (50... Kc7 $14 51. Re8 Rxf5+ 52. Kc4 (52. Nxf5 b6+ 53. Kd4 Rg4+ 54. Kc3 Kxd7 $18) 52... Rc5+ (52... b5+ $2 53. axb5 $18) 53. Kd3 (53. Kxc5 Rg5+ 54. Kc4 Kxd7 $11) 53... Rd5 54. Rxg8 c5) 51. Bh3 {[%emt 0:00:48]} Rd8 {[%emt 0:00:53]} 52. Kd6 {[%emt 0:00:29]} Rh8 {[%emt 0:00:23]} 53. Ne6 $2 {[%emt 0:00:33]} (53. Bf1 Rxd7+ 54. Kxd7) 53... Rxd7+ {[%emt 0:00:24]} 54. Kxd7 {[%emt 0:00:02]} Rxh3 {[%emt 0:00:07][%mdl 4096] Endgame [#] KRN-KR} (54... Rh7+ {is a better defense.} 55. Kd6 Rxh3) 55. Rg5 $1 {[%emt 0:00:51]} ({Much less strong is} 55. Rxa5 Rh7+ 56. Kd6 b5 $18) 55... g2 {[%emt 0:00:32]} 56. Rxg2 $2 {[%emt 0:00:41]} (56. Rg8+ $18 Ka7 57. Rxg2) 56... Rxb3 $2 {[%emt 0:00:06][%mdl 8192]} ({Better is} 56... Rd3+ $14 57. Ke7 Rxb3) 57. Rg8+ {[%emt 0:00:33]} Ka7 {[%emt 0:00:06]} 58. Kc7 {[%emt 0:00:14] White threatens Rb8 and mate.} Rh3 {[%emt 0:01:11] [#]} (58... Re3 $18) 59. Rg7 $1 {[%emt 0:00:31]} Rh4 {[%emt 0:00:56]} 60. Nc5 {[%emt 0:00:32]} Rc4 {[%emt 0:00:45]} 61. Nxb7 {[%emt 0:00:16] White mates.} Ka6 {[%emt 0:00:31]} 62. Rg8 {[%emt 0:00:21][%cal Rg8a8]} Ka7 {[%emt 0:00:07]} 63. Nxa5 {[%emt 0:00:24]} Rxa4 {[%emt 0:00:11]} 64. Nxc6+ {[%emt 0:00:25]} Ka6 {[%emt 0:00:01]} 65. Rb8 {[%emt 0:00:11] Weighted Error Value: White=0.43/Black=0.74  Loses game:     	---       	Black=4      Missed win:     	White=1     	---        Mistake:       	White=10    	Black=10     Inaccurate:     	White=3     	Black=2      OK:         	White=12    	Black=13     Best:        	White=10    	Black=6      Strong:       	White=4     	---        Brilliant:      	---       	Black=1} 1-0

[Event "8th Montevideo Open 2025"]
[Site "Montevideo"]
[Date "2025.02.07"]
[Round "7.6"]
[White "Hoffman, Alejandro"]
[Black "Kulik, Nicolas"]
[Result "1-0"]
[Annotator "TA"]
[ECO "E71"]
[WhiteElo "2368"]
[BlackElo "1922"]
[PlyCount "51"]
[EventDate "2025.02.01"]
[EventType "swiss"]
[EventCountry "URU"]
[SourceTitle "playchess.com"]
[Source "ChessBase"]
[SourceQuality "1"]
[TimeControl "5400+30"]

{[%evp 10,51,51,45,54,39,81,87,92,93,86,85,82,82,82,82,82,82,99,110,113,109,112,104,119,120,239,157,175,116,108,96,408,410,415,400,371,379,574,396,433,432,447,406]} 1. d4 {[%emt 0:00:07]} Nf6 {[%emt 0:00:01]} 2. c4 {[%emt 0:00:17]} g6 {[%emt 0:00:02]} 3. Nc3 {[%emt 0:00:13]} Bg7 {[%emt 0:00:02]} 4. e4 {[%emt 0:00:11]} d6 {[%emt 0:00:01]} 5. h3 {[%emt 0:00:16]} Nbd7 {[%emt 0:00:02]} 6. Bd3 {[%emt 0:05:56]} e5 {[%emt 0:00:56] E71: King's Indian: 4 e4 d6 5 h3.} 7. d5 {[%emt 0:00:09]} h5 {[%emt 0:02:50]} 8. Nf3 {[%emt 0:05:48]} Nc5 {[%emt 0:04:55] White is better.} 9. Bc2 {[%emt 0:00:11]} a5 {[%emt 0:00:03]} 10. Be3 {[%emt 0:02:43]} b6 {[%emt 0:00:59]} 11. a3 $146 {[%emt 0:07:03]} (11. Qd2 Bd7 12. Ng5 Qe7 13. O-O-O Nh7 14. Nxh7 Rxh7 15. f4 O-O-O 16. Rdf1 exf4 17. Bxf4 Bxc3 18. Qxc3 Nxe4 {0-1 Sander,D (1870)-Van der Hagen,L (2334) Helmond Rapid op 2024 (2)}) 11... Bh6 {[%emt 0:06:31]} 12. Bxh6 {[%emt 0:02:34]} Rxh6 {[%emt 0:00:08]} 13. b4 {[%emt 0:01:07]} Na6 {[%emt 0:04:01]} 14. Qd2 {[%emt 0:03:11]} Rh8 {[%emt 0:00:08]} 15. O-O {[%emt 0:00:30]} h4 {[%emt 0:01:26]} 16. Ne1 {[%emt 0:08:00] White is more active.} g5 {[%emt 0:11:23]} 17. Nd3 {[%emt 1:00:44]} (17. Qxg5 $6 Bxh3 18. bxa5 (18. gxh3 $2 Rg8 $19) 18... Bxg2 19. Nxg2 h3 $11) 17... g4 {[%emt 0:05:08]} (17... Nh5 $16) 18. Ba4+ {[%emt 0:00:30]} Bd7 {[%emt 0:15:39] [#]} 19. Bxd7+ {[%emt 0:00:00]} ({Better is} 19. f4 $1 $18 {[%cal Rf4e5]}) 19... Qxd7 $16 {[%emt 0:01:34]} 20. Qg5 $36 {[%emt 0:01:00][%mdl 2048] White is really pushing.} Ke7 {[%emt 0:13:56][%mdl 8192] [#] This costs Black the game.} (20... Qe7 $16) 21. Nxe5 $1 $18 {[%emt 0:00:00][%mdl 512]} dxe5 {[%emt 0:00:18]} (21... Rhg8 22. Qxf6+) 22. Qxe5+ {[%emt 0:00:00]} Kf8 {[%emt 0:00:06]} 23. Qxf6 {[%emt 0:00:00]} Rg8 {[%emt 0:00:18]} (23... Rh7 {might work better.} 24. e5 gxh3) 24. Qxh4 {[%emt 0:00:00]} Re8 {[%emt 0:00:23]} 25. bxa5 {[%emt 0:00:00][%cal Bb4a5,Ba5b6][%mdl 32]} Nc5 {[%emt 0:00:49]} 26. axb6 {[%emt 0:00:00] Weighted Error Value: White=0.26 (precise) /Black=0.65  Loses game:     	---       	Black=1      Mistake:       	White=1     	Black=2      Inaccurate:     	White=2     	Black=1      OK:         	White=10    	Black=5      Best:        	---       	Black=2      Brilliant:      	White=1     	---} 1-0

[Event "8th Montevideo Open 2025"]
[Site "Montevideo"]
[Date "2025.02.07"]
[Round "7.7"]
[White "Manteiga, Franco"]
[Black "Roselli Mailhe, Bernardo"]
[Result "0-1"]
[Annotator "TA"]
[ECO "E46"]
[WhiteElo "2029"]
[BlackElo "2342"]
[PlyCount "138"]
[EventDate "2025.02.01"]
[EventType "swiss"]
[EventCountry "URU"]
[SourceTitle "playchess.com"]
[Source "ChessBase"]
[SourceQuality "1"]
[TimeControl "5400+30"]

{[%evp 16,138,9,0,0,1,2,-8,23,-12,-8,-1,0,-17,3,-8,0,0,0,0,-6,-33,-25,-15,-9,-53,-7,-52,-36,-78,-45,-39,-30,-54,5,9,0,11,9,8,2,9,9,0,16,-110,-104,-120,-33,-80,0,0,0,0,25,17,50,58,67,50,56,56,50,24,18,5,11,0,0,0,0,0,0,0,0,0,0,0,0,0,-7,-43,-51,-54,-45,-52,-13,-35,-5,-8,-8,-8,0,-30,-28,-173,-166,-160,-152,-1552,-1690,-1635,-1593,-1402,-1431,-1431,-1245,-2940,-2749,-2413,-2570,-1643,-1610,-5089,-4856,-2340,-2011,-29966,-29967,-29968,-29966,-6514,-6095,-6095,-5206]} 1. d4 {[%emt 0:00:04]} e6 {[%emt 0:00:09]} 2. c4 {[%emt 0:00:26]} Bb4+ {[%emt 0:00:26]} 3. Nc3 {[%emt 0:01:05]} Nf6 {[%emt 0:00:18]} 4. e3 {[%emt 0:00:06]} O-O {[%emt 0:00:10]} 5. Nge2 {[%emt 0:00:03]} d5 {[%emt 0:00:16]} 6. a3 {[%emt 0:00:09]} Bd6 {[%emt 0:00:09]} 7. c5 {[%emt 0:00:05]} Be7 {[%emt 0:00:03]} 8. b4 {[%emt 0:00:39]} b6 {[%emt 0:00:51]} 9. Nf4 {[%emt 0:01:04]} c6 {[%emt 0:00:07] E46: Nimzo-Indian: Rubinstein: 4 e3 0-0 5 Ne2 without early Bd3.} 10. Be2 {[%emt 0:01:37]} Nbd7 {[%emt 0:02:57]} 11. Nd3 {[%emt 0:06:48]} Qc7 {[%emt 0:01:44] The position is equal.} 12. f4 {[%emt 0:00:50]} a5 {[%emt 0:02:50] [#]} 13. Bd2 {[%emt 0:04:02]} Ba6 {[%emt 0:00:08]} 14. O-O {[%emt 0:01:56]} h6 $146 {[%emt 0:03:11]} (14... Ne4 15. Nxe4 dxe4 16. Nf2 Bxe2 17. Qxe2 axb4 18. axb4 f5 19. Qc4 Kf7 20. Nxe4 b5 {0-1 Vaisser,A (2522)-Romanov,E (2624) EU-ch 12th Aix les Bains 2011 (7)}) 15. Kh1 {[%emt 0:17:13]} axb4 {[%emt 0:08:05]} 16. axb4 {[%emt 0:00:31]} Bc4 {[%emt 0:00:13]} 17. Rc1 {[%emt 0:10:52]} Rfb8 {[%emt 0:09:39]} 18. Be1 {[%emt 0:07:19]} bxc5 {[%emt 0:01:29]} 19. bxc5 {[%emt 0:00:05]} Rb3 {[%emt 0:04:11]} 20. Ra1 {[%emt 0:11:38]} Raa3 {[%emt 0:06:22]} (20... Rxa1 $15 {was preferable.} 21. Qxa1 Ng4 22. Bxg4 Bxd3) 21. Qc1 {[%emt 0:02:38]} Qa7 {[%emt 0:01:14]} 22. Bd2 {[%emt 0:03:42]} Ne4 {[%emt 0:15:30] Black has more active pieces.} (22... Ng4 $5 23. Nb4 Rxa1 24. Qxa1 Qb7 25. Bxc4 dxc4 $11) 23. Nxe4 {[%emt 0:00:31]} Rxa1 {[%emt 0:00:09]} 24. Qxa1 {[%emt 0:00:27]} Qxa1 {[%emt 0:01:28]} (24... Ra3 $1 $15 25. Qd1 (25. Qc1 Bxd3 26. Bxd3 Rxd3 $11) 25... Bxd3 (25... dxe4 26. Nb4 $17) 26. Bxd3 Rxd3) 25. Rxa1 $11 {[%emt 0:00:03][%cal Od3c1] Black must now prevent Nc1!.} dxe4 {[%emt 0:11:01]} 26. Nc1 {[%emt 0:00:08][%csl LRb3,LRc4]} Rb2 {[%emt 0:00:05]} 27. Bxc4 {[%emt 0:29:59]} Rxd2 {[%emt 0:01:47]} 28. Nb3 {[%emt 0:00:00]} Rc2 {[%emt 0:00:07]} 29. Na5 {[%emt 0:00:00][%cal Oc4f1]} Bf6 {[%emt 0:02:46]} (29... Nxc5 $5 30. dxc5 Bxc5 $15) 30. Kg1 {[%emt 0:00:00]} (30. Rb1 $11) 30... Nxc5 $17 {[%emt 0:03:11]} 31. Rb1 {[%emt 0:00:00]} Nd7 {[%emt 0:04:19]} (31... Nd3 $17 32. Bb3 Rc3) 32. Rb7 {[%emt 0:00:00]} (32. g3 $15) 32... Nf8 {[%emt 0:00:18]} ({Black should try} 32... Bd8 $17 33. Bb3 (33. Nxc6 Bh4 $17) 33... Rc1+ 34. Kf2 Bxa5 35. Rxd7 g6) 33. Bb3 $11 {[%emt 0:00:00]} Rc3 {[%emt 0:01:39]} 34. Nc4 {[%emt 0:00:00]} Ng6 {[%emt 0:05:43]} 35. Kf2 {[%emt 0:00:00]} Be7 {[%emt 0:00:25]} 36. Nd2 {[%emt 0:00:00]} Rc1 {[%emt 0:01:11]} 37. Nxe4 {[%emt 0:00:00]} c5 {[%emt 0:06:57]} 38. dxc5 {[%emt 0:00:00]} Bxc5 {[%emt 0:00:11]} 39. Nxc5 {[%emt 0:00:00]} Rxc5 $14 {[%emt 0:00:05][%mdl 4096] Endgame KRB-KRN} 40. Ba4 {[%emt 0:00:00]} Rc8 {[%emt 0:01:08]} 41. g3 {[%emt 0:00:00]} Kf8 {[%emt 0:00:32]} 42. Kf3 {[%emt 0:01:19]} Ne7 {[%emt 0:00:08]} 43. e4 {[%emt 0:02:05]} g6 {[%emt 0:01:29]} 44. Rb3 {[%emt 0:01:50] Prevents Rc3+.} Ra8 {[%emt 0:00:44]} 45. Bb5 {[%emt 0:01:01]} Ra2 {[%emt 0:00:07]} 46. Be2 {[%emt 0:01:27]} Nc6 {[%emt 0:00:25]} 47. Rd3 {[%emt 0:00:34] Repels Nd4+} e5 {[%emt 0:01:39]} 48. Re3 {[%emt 0:00:49]} Nd4+ {[%emt 0:01:02]} 49. Kf2 {[%emt 0:00:01]} Ke7 {[%emt 0:00:45]} 50. Kf1 {[%emt 0:01:48]} f6 {[%emt 0:01:59]} 51. h3 {[%emt 0:00:24]} Kd6 {[%emt 0:00:16] ...Nxe2 would now be deadly.} 52. Bc4 {[%emt 0:00:25]} Rc2 {[%emt 0:01:07]} 53. Bf7 {[%emt 0:00:16]} g5 {[%emt 0:00:14]} 54. f5 {[%emt 0:00:55]} Kc5 {[%emt 0:01:34]} 55. g4 {[%emt 0:00:33]} (55. Ra3 $11 {and White has nothing to worry.}) 55... Kb4 $19 {[%emt 0:00:17]} 56. Bd5 {[%emt 0:00:21] [#]} Rc3 $1 {[%emt 0:00:29]} 57. Kf2 {[%emt 0:00:31] Now White is beyond hope.} (57. Re1 $17) 57... Rxe3 58. Kxe3 {[%emt 0:00:01] KB-KN} Kc3 {[%emt 0:00:16]} 59. Bb7 {[%emt 0:00:33]} Nc2+ {[%emt 0:00:14]} 60. Ke2 {[%emt 0:00:09]} Kd4 {[%emt 0:00:07]} 61. Kf3 {[%emt 0:01:25]} Ne1+ {[%emt 0:01:05]} 62. Kf2 {[%emt 0:00:29]} Nd3+ {[%emt 0:00:06]} 63. Kf3 {[%emt 0:00:18]} Nf4 {[%emt 0:00:09]} 64. Kg3 {[%emt 0:00:15]} Ke3 {[%emt 0:00:10]} 65. h4 {[%emt 0:00:28]} Ne2+ {[%emt 0:00:19]} 66. Kh3 {[%emt 0:00:05]} Kf3 {[%emt 0:00:32]} 67. hxg5 {[%emt 0:00:09]} hxg5 {[%emt 0:00:04]} 68. Ba6 {[%emt 0:00:50]} Nf4+ {[%emt 0:00:10]} 69. Kh2 {[%emt 0:00:01]} Kxg4 {[%emt 0:00:08] Weighted Error Value: White=0.28 (precise) /Black=0.13 (very precise)   Loses game:     	White=1     	---        Mistake:       	White=3     	Black=4      Inaccurate:     	White=8     	Black=5      OK:         	White=17    	Black=17     Best:        	White=2     	Black=5      Strong:       	---       	Black=1} 0-1

[Event "8th Montevideo Open 2025"]
[Site "Montevideo"]
[Date "2025.02.07"]
[Round "7.8"]
[White "De Dovitiis, Alejo"]
[Black "Miller, Ariel"]
[Result "1-0"]
[Annotator "TA"]
[ECO "B22"]
[WhiteElo "2225"]
[BlackElo "1835"]
[PlyCount "66"]
[EventDate "2025.02.01"]
[EventType "swiss"]
[EventCountry "URU"]
[SourceTitle "playchess.com"]
[Source "ChessBase"]
[SourceQuality "1"]
[TimeControl "5400+30"]

{[%evp 16,66,10,-1,16,16,19,10,16,17,5,2,13,26,10,29,30,25,37,0,4,-2,82,81,80,77,74,27,179,137,117,79,87,48,74,53,65,60,383,353,402,405,1170,1197,29976,29976,29971,29972,6499,5397,29990,29991,1831]} 1. e4 {[%emt 0:02:56][%cal Be2e4,Be4e5][%mdl 32]} c5 {[%emt 0:00:09]} 2. Nf3 {[%emt 0:00:30]} e6 {[%emt 0:00:02]} 3. c3 {[%emt 0:00:40]} Nf6 {[%emt 0:00:31]} 4. e5 {[%emt 0:00:17]} Nd5 {[%emt 0:00:02]} 5. g3 {[%emt 0:02:39]} Nc6 {[%emt 0:02:02]} 6. Bg2 {[%emt 0:01:00]} d6 {[%emt 0:01:05]} 7. exd6 {[%emt 0:00:10]} Bxd6 {[%emt 0:00:27]} 8. O-O {[%emt 0:00:09]} O-O {[%emt 0:00:59]} 9. Na3 {[%emt 0:01:05][%cal Bb1a3,Ba3c4,Bc4e3,Be3g4][%mdl 32]} Bd7 {[%emt 0:03:00] B22: Sicilian: 2 c3.} 10. Nc4 {[%emt 0:00:30]} Bc7 {[%emt 0:00:33]} 11. a4 {[%emt 0:01:19]} Rb8 $146 {[%emt 0:02:14] The position is equal.} (11... a6 12. d3 b5 13. axb5 axb5 14. Rxa8 Qxa8 15. Ne3 b4 16. c4 Nf6 17. d4 Qa7 18. dxc5 Qxc5 {1-0 Postnova,E (2246)-Meshcheriakova,E (2201) RUS-ch U16 Girls 2001}) 12. Re1 {[%emt 0:02:30]} a6 {[%emt 0:01:06][%cal Ba7a6,Ba6b5][%mdl 32]} 13. d3 {[%emt 0:14:45][%cal Bd2d3,Bd3d4][%mdl 32]} b5 {[%emt 0:07:17]} 14. axb5 {[%emt 0:00:32]} axb5 {[%emt 0:00:18]} 15. Ne3 {[%emt 0:00:32]} Nce7 {[%emt 0:02:49]} 16. d4 {[%emt 0:02:26]} c4 {[%emt 0:08:04]} 17. Qe2 {[%emt 0:10:16]} Bc6 {[%emt 0:06:07]} 18. Ng4 {[%emt 0:00:26]} Ng6 {[%emt 0:09:52]} (18... Ra8 $11 19. Bg5 h6) 19. h4 $16 {[%emt 0:01:31][%cal Bh2h4,Bh4h5][%mdl 32]} h6 {[%emt 0:07:13]} 20. h5 {[%emt 0:12:46]} Nge7 {[%emt 0:03:19]} 21. Nfe5 {[%emt 0:02:57]} (21. Nxh6+ $16 gxh6 22. Bxh6) 21... Bd7 $2 {[%emt 0:04:49]} (21... Bxe5 $11 {and Black stays safe.} 22. Nxe5 Ba8) 22. Nxh6+ {[%emt 0:15:56]} gxh6 {[%emt 0:00:36]} 23. Bxh6 {[%emt 0:06:28] [#] Hoping for Qg4+. White attacks} Bxe5 {[%emt 0:02:19]} 24. Qg4+ {[%emt 0:02:11]} ({Much weaker is} 24. Qxe5 f6 25. Qe2 Rf7 $15) 24... Kh8 {[%emt 0:01:39]} 25. Bxf8 {[%emt 0:03:54] White is much more active.} (25. Rxe5 Rg8 26. Qf3 f6 $19) 25... Qxf8 {[%emt 0:01:06]} 26. Rxe5 {[%emt 0:00:31]} Qh6 $2 {[%emt 0:07:07][%mdl 8192] [#]} (26... Bc6 $14) 27. Bxd5 $18 {[%emt 0:05:57]} ({But not} 27. Rxd5 Rg8 $18) 27... Nxd5 {[%emt 0:00:30]} 28. Rxd5 {[%emt 0:00:31]} f5 {[%emt 0:00:27]} (28... Rg8 $142) 29. Qe2 {[%emt 0:00:14]} exd5 {[%emt 0:02:45]} 30. Qe5+ {[%emt 0:00:09]} Kh7 {[%emt 0:00:06]} 31. Qxb8 {[%emt 0:00:13]} Qxh5 {[%emt 0:00:10]} 32. Ra7 {[%emt 0:01:30]} Qd1+ {[%emt 0:01:05]} 33. Kg2 {[%emt 0:00:12]} Qh1+ {[%emt 0:00:10] Weighted Error Value: White=0.34/Black=1.10  Loses game:     	---       	Black=1      Mistake:       	White=1     	Black=3      Inaccurate:     	White=3     	Black=1      OK:         	White=9     	Black=7      Best:        	White=2     	Black=1} 1-0